bitfinex-derivatives/quotes_SOLF0:USTF0_20241029
["timestamp","ask_amount","ask_price","bid_price","bid_amount"]
[1730228767389,2.7619,181.05,181.02,7.0854]
[1730228767977,13.25053425,181.12,181.02,7.0854]
[1730228768280,13.25053425,181.1,181.02,5.1]
[1730228768481,13.25053425,181.1,181.01,5.1]
[1730228768689,2.7627,181.0,180.95,18.35053425]
[1730228768890,18.35053425,181.07,180.95,18.35053425]
[1730228769183,2.7628,180.99,180.95,13.25053425]
[1730228769387,21.06652562,181.07,180.95,5.1]
[1730228769583,21.06652562,181.07,180.95,18.35053425]
[1730228770278,15.96652562,181.07,180.95,18.35053425]
[1730228770682,21.06652562,181.07,180.95,18.35053425]
[1730228771385,15.96652562,181.07,180.97,13.25053425]
[1730228772084,13.25053425,181.05,180.95,5.1]
[1730228772284,13.25053425,181.05,180.93,3.7161]
[1730228772487,3.7079,181.06,180.96,13.25053425]
[1730228772686,1.8213,181.06,180.98,13.25053425]
[1730228772889,1.9751,181.09,180.99,5.1]
[1730228773084,2.7622,181.03,180.99,5.1]
[1730228773485,1.9751,181.09,180.99,5.1]
[1730228774082,5.1,181.12,181.0,13.25053425]
[1730228774279,18.35053425,181.12,181.0,13.25053425]
[1730228774585,2.7604,181.14,181.06,13.25053425]
[1730228774792,16.01676829,181.17,181.07,5.1]
[1730228775293,2.76623404,181.17,181.08,13.25053425]
[1730228775491,1.9371,181.18,181.08,13.25053425]
[1730228776194,2.75121473,181.17,181.08,13.25053425]
[1730228776380,2.761,181.1,181.08,13.25053425]
[1730228776886,1.9371,181.18,181.08,13.25053425]
[1730228777682,16.57,181.26,181.08,13.25053425]
[1730228777889,13.25053425,181.2,181.08,13.25053425]
[1730228778896,2.7606,181.13,181.08,13.25053425]
[1730228779194,13.25053425,181.2,181.08,13.25053425]
[1730228779585,2.7605,181.13,181.08,13.25053425]
[1730228780190,2.762,181.04,180.97,2.7629]
[1730228780396,2.762,181.04,181.0,13.25053425]
[1730228781084,2.762,181.04,181.01,5.1]
[1730228781283,2.7616,181.07,181.02,13.25053425]
[1730228781493,15.09053425,181.12,181.02,13.25053425]
[1730228781690,2.7618,181.05,181.02,13.25053425]
[1730228781889,15.09053425,181.12,181.02,13.25053425]
[1730228782392,2.7615,181.07,181.02,13.25053425]
[1730228782591,2.7615,181.07,181.01,5.1]
[1730228783095,2.7616,181.06,181.01,5.1]
[1730228783293,1.84,181.12,181.03,13.25053425]
[1730228783494,3.7414,181.14,181.05,13.25053425]
[1730228783800,3.7414,181.14,181.06,5.1]
[1730228783990,1.9265,181.17,181.08,13.25053425]
[1730228784384,1.9265,181.17,181.06,7.8616]
[1730228784589,1.9265,181.17,181.08,13.25053425]
[1730228785391,2.7604,181.14,181.08,13.25053425]
[1730228785599,1.9265,181.17,181.08,13.25053425]
[1730228785798,15.16993425,181.2,181.1,13.25053425]
[1730228785987,2.7599,181.18,181.11,5.1]
[1730228786190,1.9194,181.2,181.11,5.1]
[1730228787304,3.8444,181.22,181.12,13.25053425]
[1730228787598,3.8444,181.22,181.14,13.25053425]
[1730228787796,1.8975,181.22,181.14,13.25053425]
[1730228787989,2.7606,181.13,181.05,7.8617]
[1730228788192,13.25053425,181.13,181.05,5.1]
[1730228788601,3.8004,181.17,181.09,13.25053425]
[1730228788995,3.8004,181.17,181.1,5.1]
[1730228789191,2.7605,181.14,181.1,5.1]
[1730228789397,3.8004,181.17,181.1,5.1]
[1730228789600,1.8621,181.17,181.1,5.1]
[1730228789898,2.7602,181.16,181.1,5.1]
[1730228790402,2.7604,181.14,181.1,5.1]
[1730228791297,2.7611,181.1,181.07,5.1]
[1730228791494,1.8622,181.16,181.07,5.1]
[1730228791893,2.761,181.1,181.07,5.1]
[1730228793108,2.7609,181.11,181.07,5.1]
[1730228793303,1.8622,181.16,181.07,5.1]
[1730228794006,2.7604,181.14,181.07,7.8613]
[1730228794504,1.8975,181.22,181.12,13.25053425]
[1730228794710,1.8975,181.22,181.16,13.25053425]
[1730228794906,1.8975,181.22,181.16,18.35053425]
[1730228795201,2.7594,181.21,181.16,18.35053425]
[1730228795402,1.8133,181.25,181.16,18.35053425]
[1730228795605,2.7589,181.24,181.19,13.25053425]
[1730228795809,1.8133,181.25,181.19,13.25053425]
[1730228795999,1.8133,181.25,181.16,18.35053425]
[1730228796709,2.759,181.24,181.17,2.7598]
[1730228797005,1.8133,181.25,181.16,5.1]
[1730228797194,1.8133,181.25,181.16,18.35053425]
[1730228797710,31.63383425,181.25,181.14,18.33053425]
[1730228797907,2.7592,181.22,181.14,18.33053425]
[1730228798112,31.63383425,181.25,181.14,18.33053425]
[1730228798409,2.7593,181.22,181.16,16.01053425]
[1730228798606,1.8133,181.25,181.16,13.25053425]
[1730228799523,2.7593,181.22,181.16,16.01053425]
[1730228799716,1.9136,181.26,181.16,13.25053425]
[1730228800022,2.7595,181.2,181.14,18.33053425]
[1730228800225,15.16413425,181.26,181.14,21.09093425]
[1730228800412,15.16413425,181.26,181.14,18.33053425]
[1730228801219,2.7596,181.2,181.14,18.33053425]
[1730228801415,2.7596,181.2,181.14,21.09093425]
[1730228801618,13.25053425,181.23,181.14,18.33053425]
[1730228802012,2.7597,181.19,181.14,18.33053425]
[1730228803108,2.7594,181.21,181.14,5.08]
[1730228803312,1.9589,181.2,181.14,5.08]
[1730228803514,1.9589,181.2,181.13,5.08]
[1730228803709,2.7603,181.15,181.13,5.08]
[1730228804020,16.98703425,181.19,181.1,18.33053425]
[1730228804227,16.98703425,181.19,181.1,5.08]
[1730228805008,2.7608,181.12,181.08,5.08]
[1730228805418,2.7604,181.14,181.08,5.08]
[1730228805618,13.25053425,181.16,181.08,5.08]
[1730228806123,13.25053425,181.16,181.05,13.25053425]
[1730228806321,13.25053425,181.16,181.06,5.1]
[1730228806629,13.25053425,181.14,181.06,5.1]
[1730228806819,2.7611,181.1,181.06,5.1]
[1730228807023,2.7611,181.1,181.05,18.35053425]
[1730228807219,13.25053425,181.14,181.05,5.1]
[1730228808522,13.25053425,181.12,181.05,5.1]
[1730228808723,2.7616,181.07,181.05,5.1]
[1730228808916,5.7952,181.11,181.02,13.25053425]
[1730228809222,5.7952,181.11,181.02,18.33053425]
[1730228810620,2.7614,181.08,181.02,18.33053425]
[1730228811326,2.7614,181.08,181.02,21.09273425]
[1730228813216,2.7614,181.08,181.02,16.01273425]
[1730228813422,2.7614,181.08,181.02,21.09273425]
[1730228816924,2.82944474,181.16,181.02,18.33053425]
[1730228817119,11.43972078,181.19,181.1,13.25053425]
[1730228817324,3.7675,181.19,181.1,13.25053425]
[1730228817625,3.7675,181.19,181.13,13.25053425]
[1730228817922,13.25053425,181.24,181.15,13.25053425]
[1730228818126,2.7592,181.22,181.16,2.76]
[1730228818428,8.8721,181.25,181.15,13.25053425]
[1730228818930,2.7595,181.2,181.15,13.25053425]
[1730228819130,13.25053425,181.24,181.15,13.25053425]
[1730228819432,13.25053425,181.24,181.14,5.08]
[1730228819725,2.7593,181.21,181.14,5.08]
[1730228820122,13.25053425,181.24,181.14,5.08]
[1730228820327,8.8721,181.25,181.15,13.25053425]
[1730228820923,13.25053425,181.24,181.12,13.25053425]
[1730228821122,13.25053425,181.24,181.13,5.08]
[1730228821523,2.7596,181.2,181.13,5.08]
[1730228822925,13.25053425,181.24,181.13,5.08]
[1730228823122,2.7596,181.19,181.13,5.08]
[1730228824830,8.8721,181.25,181.13,5.08]
[1730228825035,8.8721,181.25,181.17,13.25053425]
[1730228825324,3.7921,181.25,181.17,13.25053425]
[1730228825530,2.7592,181.22,181.17,13.25053425]
[1730228825723,3.7921,181.25,181.17,13.25053425]
[1730228826524,2.7596,181.2,181.17,13.25053425]
[1730228827920,2.7596,181.2,181.14,2.7603]
[1730228828127,2.7596,181.2,181.15,13.25053425]
[1730228828725,3.7921,181.25,181.15,13.25053425]
[1730228828933,2.7594,181.21,181.15,16.01073425]
[1730228831029,3.7921,181.25,181.17,13.25053425]
[1730228831236,1.8348,181.25,181.18,5.08]
[1730228832032,15.08533425,181.25,181.14,1.9901]
[1730228832235,15.08533425,181.25,181.15,5.08]
[1730228833335,2.7594,181.21,181.15,7.8402]
[1730228835244,2.76,181.17,181.11,13.25053425]
[1730228835539,2.73545553,181.17,181.12,5.08]
[1730228835734,13.25053425,181.23,181.12,5.08]
[1730228836040,2.76,181.17,181.12,5.08]
[1730228836229,5.54204613,181.17,181.12,5.08]
[1730228836430,2.7598,181.18,181.12,5.08]
[1730228836731,13.25053425,181.23,181.13,13.25053425]
[1730228836932,14.56111678,181.25,181.15,13.25053425]
[1730228837131,6.9148,181.25,181.15,13.25053425]
[1730228837531,1.8348,181.25,181.15,13.25053425]
[1730228837941,2.7592,181.22,181.15,13.25053425]
[1730228838438,2.7592,181.22,181.15,16.01073425]
[1730228838933,13.25053425,181.24,181.15,13.25053425]
[1730228839135,2.7599,181.18,181.13,13.25053425]
[1730228839440,13.25053425,181.22,181.13,13.25053425]
[1730228839642,2.7597,181.19,181.13,13.25053425]
[1730228839834,13.25053425,181.22,181.13,13.25053425]
[1730228840039,13.25053425,181.24,181.13,13.25053425]
[1730228841238,1.8348,181.25,181.16,13.25053425]
[1730228841441,1.8348,181.25,181.17,5.08]
[1730228842341,2.7594,181.21,181.17,5.08]
[1730228842745,1.8348,181.25,181.17,5.08]
[1730228843140,1.8333,181.26,181.18,13.25053425]
[1730228843943,2.7589,181.24,181.18,13.25053425]
[1730228844239,1.8333,181.26,181.18,13.25053425]
[1730228845344,1.8333,181.26,181.19,2.7596]
[1730228845646,2.79580317,181.27,181.2,13.25053425]
[1730228845945,2.7589,181.24,181.2,13.25053425]
[1730228846336,2.7589,181.24,181.17,7.8398]
[1730228846649,2.7589,181.24,181.18,13.25053425]
[1730228848748,2.7591,181.23,181.18,13.25053425]
[1730228849137,16.02104049,181.25,181.14,13.25053425]
[1730228849342,16.02104049,181.25,181.17,5.08]
[1730228849741,2.7598,181.18,181.11,16.01123425]
[1730228849949,13.25053425,181.22,181.12,5.08]
[1730228850149,2.7601,181.16,181.11,13.25053425]
[1730228850348,7.85050624,181.25,181.14,13.25053425]
[1730228850647,7.85050624,181.25,181.16,13.25053425]
[1730228850846,7.85050624,181.25,181.17,5.08]
[1730228851246,2.7591,181.23,181.17,5.08]
[1730228851450,7.85050624,181.25,181.17,5.08]
[1730228851851,2.7596,181.2,181.17,5.08]
[1730228852653,2.759,181.24,181.19,13.25053425]
[1730228854058,2.76807911,181.26,181.19,13.25053425]
[1730228854357,2.7591,181.23,181.19,13.25053425]
[1730228855052,2.7531628,181.25,181.19,13.25053425]
[1730228855448,2.70979503,181.26,181.19,13.25053425]
[1730228855645,2.759,181.24,181.19,13.25053425]
[1730228855851,1.8528,181.28,181.21,13.25053425]
[1730228855852,7.64631678,181.28,181.21,13.25053425]
[1730228856052,7.64631678,181.28,181.22,5.08]
[1730228856355,6.6885863,181.29,181.22,5.08]
[1730228856356,2.759,181.24,181.22,5.08]
[1730228856744,7.64631678,181.28,181.22,5.08]
[1730228856944,2.7589,181.24,181.22,5.08]
[1730228857455,2.7587,181.25,181.22,5.08]
[1730228857657,10.40592766,181.27,181.22,5.08]
[1730228857864,11.52911843,181.26,181.22,5.08]
[1730228858255,3.88280165,181.25,181.22,1.56392469]
[1730228858554,2.7593,181.22,181.2,5.08]
[1730228858851,7.64631678,181.25,181.2,5.08]
[1730228859055,2.7596,181.2,181.18,5.08]
[1730228860349,7.64631678,181.25,181.19,13.25053425]
[1730228860564,3.88508005,181.24,181.23,13.25053425]
[1730228860755,7.64631678,181.26,181.23,13.25053425]
[1730228861056,3.7223,181.3,181.23,13.25053425]
[1730228861057,2.7587,181.25,181.23,13.25053425]
[1730228862648,10.44164792,181.28,181.19,15.09933425]
[1730228862858,11.53062057,181.27,181.19,15.09933425]
[1730228863363,2.7593,181.22,181.19,15.09933425]
[1730228864462,2.7591,181.23,181.19,15.09933425]
[1730228865456,2.73623206,181.25,181.19,15.09933425]
[1730228865663,16.97283425,181.3,181.19,15.09933425]
[1730228866064,2.7584,181.27,181.19,15.09933425]
[1730228866265,19.67537431,181.3,181.19,15.09933425]
[1730228867463,19.67537431,181.3,181.19,17.85893425]
[1730228868164,2.7588,181.25,181.19,17.85893425]
[1730228869264,2.7587,181.25,181.21,13.25053425]
[1730228870183,6.42484006,181.3,181.16,13.25053425]
[1730228870184,13.25053425,181.28,181.16,13.25053425]
[1730228870459,13.25053425,181.28,181.17,5.08]
[1730228870766,2.7595,181.21,181.17,5.08]
[1730228871956,2.7598,181.18,181.17,5.08]
[1730228872363,2.7598,181.18,181.14,13.25053425]
[1730228872561,7.64631678,181.23,181.15,5.08]
[1730228872562,2.79287798,181.19,181.15,5.08]
[1730228872867,9.54641678,181.25,181.18,13.25053425]
[1730228873071,2.7593,181.21,181.18,13.25053425]
[1730228875159,9.54641678,181.25,181.18,13.25053425]
[1730228875362,2.7589,181.24,181.18,16.01023425]
[1730228875568,7.64631678,181.26,181.18,16.01023425]
[1730228875769,7.64631678,181.26,181.18,2.7597]
[1730228875971,2.759,181.24,181.19,13.25053425]
[1730228876169,7.64631678,181.26,181.19,13.25053425]
[1730228876371,7.64631678,181.26,181.2,5.08]
[1730228876573,2.759,181.24,181.2,5.08]
[1730228876770,7.64631678,181.26,181.2,5.08]
[1730228877069,11.53238453,181.25,181.2,5.08]
[1730228877271,2.7593,181.21,181.2,5.08]
[1730228878062,2.7593,181.21,181.17,13.25053425]
[1730228878268,2.7593,181.21,181.16,5.08]
[1730228878475,2.7593,181.22,181.15,13.25053425]
[1730228878671,7.64631678,181.24,181.16,5.08]
[1730228878869,13.25053425,181.25,181.16,5.08]
[1730228879273,1.861,181.24,181.16,5.08]
[1730228879770,3.7286,181.23,181.12,17.97643425]
[1730228879971,3.7286,181.23,181.13,5.08]
[1730228880574,2.7597,181.19,181.13,7.8405]
[1730228880877,2.72051919,181.18,181.13,7.8405]
[1730228881076,3.7286,181.23,181.13,7.8405]
[1730228881468,3.7286,181.23,181.14,5.08]
[1730228881871,3.7286,181.23,181.17,13.25053425]
[1730228882271,1.861,181.24,181.17,13.25053425]
[1730228882471,1.861,181.24,181.14,5.08]
[1730228882676,1.861,181.24,181.16,13.25053425]
[1730228882867,2.7596,181.2,181.16,13.25053425]
[1730228883065,2.75537263,181.2,181.14,5.08]
[1730228883273,1.861,181.24,181.14,5.08]
[1730228883476,2.7597,181.19,181.14,5.08]
[1730228883672,2.73437931,181.2,181.16,13.25053425]
[1730228883868,1.861,181.24,181.16,13.25053425]
[1730228884070,2.759,181.23,181.18,13.25053425]
[1730228884271,1.861,181.24,181.18,13.25053425]
[1730228885071,2.7593,181.22,181.18,13.25053425]
[1730228885272,1.861,181.24,181.16,13.25053425]
[1730228885476,1.861,181.24,181.18,13.25053425]
[1730228886584,2.7592,181.22,181.18,13.25053425]
[1730228887482,2.7593,181.21,181.18,13.25053425]
[1730228887873,2.7593,181.21,181.16,16.01053425]
[1730228889980,1.861,181.24,181.16,16.01053425]
[1730228889981,2.7595,181.2,181.16,16.01053425]
[1730228890177,2.7595,181.2,181.16,13.25053425]
[1730228890380,2.7595,181.2,181.14,13.25053425]
[1730228890381,2.71777713,181.2,181.14,13.25053425]
[1730228890679,10.27112731,181.23,181.16,13.25053425]
[1730228890879,10.27112731,181.23,181.22,13.25053425]
[1730228891178,2.81149895,181.25,181.21,5.08]
[1730228891478,7.64631678,181.29,181.21,5.08]
[1730228891479,2.7587,181.26,181.21,18.33053425]
[1730228891680,2.75737324,181.25,181.21,18.33053425]
[1730228891980,2.7585,181.27,181.21,21.08973425]
[1730228892184,10.47328021,181.29,181.23,13.25053425]
[1730228892369,7.64631678,181.31,181.28,13.25053425]
[1730228892571,30.58526712,181.37,181.28,13.25053425]
[1730228892572,2.7575,181.33,181.28,13.25053425]
[1730228893172,2.80238594,181.34,181.28,13.25053425]
[1730228893173,2.7577,181.32,181.28,13.25053425]
[1730228893371,2.80238594,181.34,181.28,13.25053425]
[1730228893575,7.64631678,181.36,181.28,13.25053425]
[1730228893776,2.7576,181.33,181.28,13.25053425]
[1730228893982,2.7855407,181.32,181.28,13.25053425]
[1730228894183,2.7576,181.33,181.28,13.25053425]
[1730228895787,2.77741142,181.34,181.28,13.25053425]
[1730228896087,2.7577,181.32,181.28,13.25053425]
[1730228897690,2.7578,181.31,181.28,13.25053425]
[1730228897884,2.71861123,181.34,181.28,13.25053425]
[1730228898185,15.13513425,181.38,181.27,5.08]
[1730228898385,13.25053425,181.36,181.26,13.25053425]
[1730228898591,13.25053425,181.36,181.26,18.33053425]
[1730228899093,13.25053425,181.33,181.24,13.25053425]
[1730228899285,13.25053425,181.33,181.24,18.33053425]
[1730228899286,15.94264399,181.33,181.24,18.33053425]
[1730228899592,2.7583,181.28,181.24,18.33053425]
[1730228899790,15.94264399,181.33,181.24,18.33053425]
[1730228899986,2.7587,181.26,181.22,5.08]
[1730228900493,13.25053425,181.3,181.22,5.08]
[1730228900687,13.25053425,181.28,181.19,13.25053425]
[1730228900899,23.76214801,181.28,181.16,18.33053425]
[1730228901087,2.7589,181.24,181.18,16.01033425]
[1730228901287,2.69727119,181.23,181.18,13.25053425]
[1730228901791,2.7591,181.23,181.18,13.25053425]
[1730228901991,2.75415467,181.23,181.18,13.25053425]
[1730228902189,10.51161376,181.27,181.18,13.25053425]
[1730228902492,2.759,181.24,181.18,13.25053425]
[1730228902693,10.51161376,181.27,181.21,13.25053425]
[1730228903490,2.7583,181.28,181.21,18.33053425]
[1730228903884,2.7583,181.28,181.21,21.08983425]
[1730228904088,6.4742,181.31,181.23,13.25053425]
[1730228904286,1.8476,181.31,181.23,13.25053425]
[1730228904589,1.8476,181.31,181.21,5.08]
[1730228904590,10.51067453,181.32,181.25,13.25053425]
[1730228904789,2.69210974,181.33,181.28,13.25053425]
[1730228904990,10.51067453,181.35,181.26,5.08]
[1730228905292,2.7577,181.32,181.26,5.08]
[1730228905685,2.74755478,181.33,181.26,5.08]
[1730228905990,2.7578,181.31,181.26,5.08]
[1730228907389,2.82294753,181.32,181.26,5.08]
[1730228907589,2.7576,181.33,181.26,5.08]
[1730228908189,5.50151082,181.33,181.26,5.08]
[1730228908389,2.74391082,181.33,181.26,5.08]
[1730228908586,13.25053425,181.34,181.26,5.08]
[1730228908988,2.7577,181.32,181.26,18.33053425]
[1730228909400,2.79360935,181.32,181.26,5.08]
[1730228909602,2.7581,181.3,181.26,5.08]
[1730228909797,5.48958619,181.3,181.26,5.08]
[1730228910498,2.73148619,181.3,181.26,5.08]
[1730228910799,2.7579,181.31,181.26,5.08]
[1730228911297,2.77136704,181.3,181.26,5.08]
[1730228911692,2.758,181.3,181.26,5.08]
[1730228911892,5.53902915,181.3,181.26,5.08]
[1730228912099,2.758,181.3,181.26,5.08]
[1730228912291,2.71173807,181.29,181.26,5.08]
[1730228913588,10.51067453,181.33,181.24,13.25053425]
[1730228913789,13.22201018,181.33,181.24,13.25053425]
[1730228913996,13.25053425,181.31,181.21,13.25053425]
[1730228914303,13.25053425,181.31,181.22,5.08]
[1730228914503,13.25053425,181.31,181.2,7.8394]
[1730228914703,23.76120878,181.31,181.2,7.8394]
[1730228915205,2.7585,181.27,181.2,7.8394]
[1730228915390,2.7585,181.27,181.2,5.08]
[1730228915595,23.76120878,181.31,181.2,5.08]
[1730228915999,25.66240878,181.31,181.2,5.08]
[1730228916503,2.7586,181.26,181.2,7.8394]
[1730228917201,12.33267453,181.3,181.2,7.8394]
[1730228917202,12.33267453,181.3,181.2,5.08]
[1730228917401,1.822,181.3,181.21,5.08]
[1730228918800,2.7586,181.26,181.21,5.08]
[1730228919612,2.7584,181.27,181.21,21.08973425]
[1730228920706,2.7586,181.26,181.21,21.08973425]
[1730228922406,12.33267453,181.3,181.21,18.33053425]
[1730228922610,10.51067453,181.31,181.23,13.25053425]
[1730228922914,2.71133565,181.33,181.21,5.08]
[1730228922915,2.71133565,181.33,181.26,13.25053425]
[1730228923117,10.51067453,181.34,181.26,13.25053425]
[1730228923416,2.7577,181.32,181.26,21.08893425]
[1730228923619,2.78017199,181.31,181.26,21.08893425]
[1730228925112,2.7577,181.32,181.27,2.7584]
[1730228926312,5.53556353,181.33,181.28,2.7582]
[1730228926612,5.53556353,181.33,181.26,18.33053425]
[1730228926613,14.24027453,181.36,181.26,18.33053425]
[1730228926809,3.88953718,181.35,181.26,18.33053425]
[1730228927213,2.7578,181.32,181.26,21.08903425]
[1730228927411,2.71723528,181.31,181.26,21.08903425]
[1730228927613,21.88659131,181.36,181.26,21.08903425]
[1730228927815,2.7578,181.31,181.26,21.08903425]
[1730228928017,2.78348238,181.33,181.29,2.7581]
[1730228928214,10.51067453,181.35,181.26,5.08]
[1730228928414,2.7571,181.36,181.3,13.25053425]
[1730228928612,2.7571,181.36,181.26,5.08]
[1730228928613,13.25053425,181.37,181.28,13.25053425]
[1730228928808,23.76120878,181.37,181.28,13.25053425]
[1730228929019,2.7574,181.34,181.28,13.25053425]
[1730228929322,5.54750709,181.34,181.28,16.00873425]
[1730228929511,2.7574,181.34,181.28,16.00873425]
[1730228929820,2.79066216,181.34,181.28,13.25053425]
[1730228930007,2.7576,181.33,181.28,13.25053425]
[1730228930212,2.69183369,181.32,181.28,13.25053425]
[1730228930613,10.51067453,181.36,181.28,13.25053425]
[1730228931619,2.7576,181.33,181.28,13.25053425]
[1730228931821,2.81329885,181.32,181.28,13.25053425]
[1730228932120,13.25053425,181.37,181.28,13.25053425]
[1730228932516,13.25053425,181.37,181.28,16.00873425]
[1730228933213,13.25053425,181.37,181.28,13.25053425]
[1730228933419,2.7575,181.33,181.28,13.25053425]
[1730228933615,2.7001154,181.32,181.28,13.25053425]
[1730228933820,2.7001154,181.32,181.28,18.33053425]
[1730228934521,10.51067453,181.36,181.3,13.25053425]
[1730228934723,12.38797453,181.4,181.32,13.25053425]
[1730228934925,1.8773,181.4,181.33,5.08]
[1730228935820,1.8773,181.4,181.33,7.8374]
[1730228935821,2.7567,181.39,181.33,7.8374]
[1730228936426,2.7567,181.39,181.35,8.48034109]
[1730228936630,2.7567,181.39,181.35,1.23248589]
[1730228938125,2.7568,181.38,181.35,1.23248589]
[1730228938525,2.7568,181.38,181.33,5.08]
[1730228938821,12.38797453,181.4,181.33,5.08]
[1730228939128,1.8773,181.4,181.33,5.08]
[1730228939526,2.7568,181.38,181.33,5.08]
[1730228939920,12.38797453,181.4,181.33,5.08]
[1730228940226,2.7569,181.37,181.33,5.08]
[1730228940422,12.38797453,181.4,181.33,5.08]
[1730228940625,1.8773,181.4,181.33,5.08]
[1730228940821,10.51067453,181.41,181.33,18.33241847]
[1730228941024,1.9547,181.42,181.33,18.33241847]
[1730228941434,2.7567,181.39,181.33,21.08991847]
[1730228942223,10.51067453,181.43,181.38,13.25241847]
[1730228942428,4.67222993,181.44,181.36,13.25241847]
[1730228942927,4.67222993,181.44,181.36,5.08]
[1730228943128,15.18290446,181.44,181.36,5.08]
[1730228943327,13.20370446,181.44,181.37,18.33241847]
[1730228943529,2.69302993,181.44,181.39,13.25241847]
[1730228943830,13.25241847,181.46,181.37,18.33241847]
[1730228944035,2.7563,181.42,181.37,18.33241847]
[1730228944237,10.51067453,181.45,181.37,18.33241847]
[1730228944434,12.48397453,181.47,181.37,18.33241847]
[1730228944737,4.78590879,181.47,181.37,18.33241847]
[1730228944932,15.29658332,181.47,181.37,18.33241847]
[1730228945233,2.7559,181.44,181.37,21.08921847]
[1730228947138,2.7561,181.43,181.37,18.33241847]
[1730228947327,15.29658332,181.47,181.37,18.33241847]
[1730228947526,13.25241847,181.46,181.37,5.08]
[1730228947737,13.25241847,181.46,181.3,3.7012]
[1730228947738,23.763093,181.46,181.36,5.08]
[1730228947931,13.25241847,181.43,181.35,5.08]
[1730228948526,23.763093,181.46,181.35,18.33241847]
[1730228948934,13.25241847,181.43,181.35,18.33241847]
[1730228949342,2.7566,181.4,181.35,5.08]
[1730228949537,13.25241847,181.43,181.35,5.08]
[1730228949938,1.9246,181.42,181.35,5.08]
[1730228950536,13.25241847,181.41,181.35,5.08]
[1730228951136,2.7569,181.37,181.35,5.08]
[1730228951335,5.54163932,181.37,181.35,5.08]
[1730228952245,2.78473932,181.37,181.35,5.08]
[1730228952443,2.7568,181.38,181.35,5.08]
[1730228953043,2.76352135,181.37,181.35,5.08]
[1730228953237,10.51067453,181.4,181.36,13.25241847]
[1730228953438,20.02662726,181.47,181.36,13.25241847]
[1730228953741,10.51067453,181.46,181.36,13.25241847]
[1730228953935,2.7557,181.45,181.39,2.7566]
[1730228954141,10.51067453,181.46,181.39,2.7566]
[1730228954536,2.7558,181.44,181.39,2.7566]
[1730228954742,2.7558,181.44,181.38,2.7567]
[1730228955542,10.51067453,181.46,181.38,2.7567]
[1730228955748,2.756,181.43,181.37,2.7568]
[1730228955943,10.51067453,181.46,181.36,13.25241847]
[1730228957251,2.7561,181.43,181.37,2.7568]
[1730228957550,13.25241847,181.45,181.35,5.08]
[1730228958048,2.7562,181.42,181.36,2.7569]
[1730228959449,2.7562,181.42,181.35,5.08]
[1730228959646,2.756,181.43,181.38,2.7567]
[1730228961552,10.51067453,181.46,181.36,5.08]
[1730228961553,13.25241847,181.45,181.36,5.08]
[1730228962139,13.25241847,181.45,181.36,7.837]
[1730228962546,8.47696081,181.44,181.39,8.47696081]
[1730228962944,21.74353534,181.44,181.39,8.47696081]
[1730228963146,10.51067453,181.43,181.39,8.47696081]
[1730228963445,8.47696081,181.44,181.39,11.23356081]
[1730228963839,8.47696081,181.44,181.39,13.53696081]
[1730228964047,11.23286081,181.44,181.39,13.53696081]
[1730228964245,8.47696081,181.42,181.39,5.06]
[1730228964954,2.7564,181.41,181.39,5.06]
[1730228965451,8.47696081,181.4,181.36,8.47696081]
[1730228965953,11.23366081,181.39,181.34,13.53696081]
[1730228966447,10.51067453,181.45,181.35,8.47696081]
[1730228966654,2.7565,181.4,181.37,8.47696081]
[1730228967146,8.47696081,181.4,181.34,5.06]
[1730228967452,2.7572,181.35,181.31,13.53696081]
[1730228967654,2.82486999,181.34,181.31,13.53696081]
[1730228967950,2.82486999,181.34,181.31,5.06]
[1730228968146,2.82486999,181.34,181.24,63.5031]
[1730228968147,8.47696081,181.34,181.24,63.5031]
[1730228968348,8.47696081,181.28,181.24,5.06]
[1730228969357,8.47696081,181.27,181.24,5.06]
[1730228970253,11.23526081,181.28,181.24,5.06]
[1730228970451,10.51067453,181.34,181.26,2.7586]
[1730228970650,35.86843463,181.34,181.26,2.7586]
[1730228970851,19.79398332,181.33,181.26,2.7586]